lending/lending_fUSD_20250719
["ID","MTS","AMOUNT","RATE_DAILY","PERIOD"]
[373329398,1752947479290,-1323.57,0.00019835,2]
[373329399,1752947479300,-480.0,0.00019835,2]
[373329400,1752947479310,-480.0,0.00019835,2]
[373329401,1752947479320,-480.0,0.00019835,2]
[373329402,1752947479330,-480.0,0.00019835,2]
[373329403,1752947479341,-1052.89,0.00019835,2]
[373329404,1752947479352,-480.0,0.00019835,2]
[373329405,1752947479362,-480.0,0.00019835,2]
[373329406,1752947479372,-675.43,0.00019835,2]
[373329407,1752947479383,-480.0,0.00019835,2]
[373329408,1752947479393,-480.0,0.00019835,2]
[373329409,1752947479402,-493.0,0.00019835,2]
[373329410,1752947479412,-1925.77,0.00019835,2]
[373329411,1752947479421,-480.0,0.00019835,2]
[373329412,1752947479431,-480.0,0.00019835,2]
[373329413,1752947479441,-480.0,0.00019835,2]
[373329414,1752947479450,-2367.09,0.00019835,2]
[373329415,1752947479459,-1097.63,0.00019835,2]
[373329416,1752947479469,-480.0,0.00019835,2]
[373329417,1752947479479,-944.49,0.00019835,2]
[373329418,1752947479488,-480.0,0.00019835,2]
[373329419,1752947479498,-480.0,0.00019835,2]
[373329420,1752947479509,-628.14,0.00019835,2]
[373329421,1752947479518,-887.51,0.00019835,2]
[373329422,1752947479528,-1347.08,0.00019835,2]
[373329423,1752947479538,-480.0,0.00019835,2]
[373329424,1752947479548,-480.0,0.00019835,2]
[373329425,1752947479559,-480.0,0.00019835,2]
[373329426,1752947479568,-340.0,0.00019835,2]
[373329427,1752947479578,-1573.99,0.00019835,2]
[373329428,1752947479587,-1810.63,0.00019835,2]
[373329429,1752947479597,-686.5,0.00019835,2]
[373329430,1752947479607,-3417.91,0.00019835,2]
[373329431,1752947479618,-1003.56,0.00019835,2]
[373329432,1752947479627,-877.98,0.00019835,2]
[373329433,1752947479637,-480.0,0.00019835,2]
[373329434,1752947479647,-625.41,0.00019835,2]
[373329435,1752947479658,-697.26,0.00019835,2]
[373329436,1752947479669,-484.73,0.00019835,2]
[373329437,1752947479679,-18779.77,0.00019835,2]
[373329438,1752947479688,-480.0,0.00019835,2]
[373329439,1752947479698,-1128.18,0.00019835,2]
[373329440,1752947479708,-480.0,0.00019835,2]
[373329441,1752947479718,-480.0,0.00019835,2]
[373329442,1752947479728,-480.0,0.00019835,2]
[373329443,1752947479737,-694.15,0.00019835,2]
[373329444,1752947479747,-622.71,0.00019835,2]
[373329445,1752947479760,-2992.01,0.00019835,2]
[373329446,1752947479772,-480.0,0.00019835,2]
[373329447,1752947479782,-671.5,0.00019835,2]
[373329448,1752947479792,-3330.84,0.00019835,2]
[373329449,1752947479802,-512.56,0.00019835,2]
[373329450,1752947479812,-480.0,0.00019835,2]
[373329451,1752947479822,-894.92,0.00019835,2]
[373329452,1752947479832,-669.69,0.00019835,2]
[373329453,1752947479842,-480.0,0.00019835,2]
[373329454,1752947479852,-480.0,0.00019835,2]
[373329455,1752947479862,-530.32,0.00019835,2]
[373329456,1752947479871,-565.91,0.00019835,2]
[373329457,1752947479881,-480.0,0.00019835,2]
[373329458,1752947479891,-480.0,0.00019835,2]
[373329459,1752947479901,-483.19,0.00019835,2]
[373329460,1752947479911,-5190.67,0.00019835,2]
[373329461,1752947479922,-480.0,0.00019835,2]
[373329462,1752947479932,-480.0,0.00019835,2]
[373329463,1752947479944,-480.0,0.00019835,2]
[373329464,1752947479954,-480.0,0.00019835,2]
[373329465,1752947479964,-480.0,0.00019835,2]
[373329466,1752947479974,-871.01,0.00019835,2]
[373329467,1752947479985,-670.84,0.00019835,2]
[373329468,1752947479995,-541.67,0.00019835,2]
[373329469,1752947480004,-582.58,0.00019835,2]
[373329470,1752947480016,-480.0,0.00019835,2]
[373329471,1752947480027,-1471.9,0.00019835,2]
[373329472,1752947480037,-506.73,0.00019835,2]
[373329473,1752947480047,-480.0,0.00019835,2]
[373329474,1752947480056,-1209.75,0.00019835,2]
[373329475,1752947480066,-480.0,0.00019835,2]
[373329476,1752947480076,-480.0,0.00019835,2]
[373329477,1752947480086,-480.0,0.00019835,2]
[373329478,1752947480096,-1136.8,0.00019835,2]
[373329479,1752947480106,-527.46365919,0.00019835,2]
[373329480,1752947480116,-686.18,0.00019835,2]
[373329481,1752947480126,-1787.28,0.00019835,2]
[373329482,1752947480136,-480.0,0.00019835,2]
[373329483,1752947480146,-480.0,0.00019835,2]
[373329484,1752947480156,-613.3,0.00019835,2]
[373329485,1752947480166,-615.16,0.00019835,2]
[373329486,1752947480175,-480.0,0.00019835,2]
[373329487,1752947480185,-480.0,0.00019835,2]
[373329488,1752947480195,-480.0,0.00019835,2]
[373329489,1752947480205,-590.52,0.00019835,2]
[373329490,1752947480215,-229.728832,0.00019835,2]
[373329491,1752947480225,-1035.78,0.00019835,2]
[373329492,1752947480235,-1251.49,0.00019835,2]
[373329493,1752947480244,-480.0,0.00019835,2]
[373329494,1752947480254,-6709.99,0.00019835,2]
[373329495,1752947480265,-480.0,0.00019835,2]
[373329496,1752947480274,-480.0,0.00019835,2]
[373329497,1752947480284,-576.67,0.00019835,2]
[373329498,1752947480294,-765.7,0.00019835,2]
[373329499,1752947480304,-1160.29,0.00019835,2]
[373329500,1752947480315,-480.0,0.00019835,2]
[373329501,1752947480324,-356.53589895,0.00019835,2]
[373329502,1752947480334,-150.0,0.0001989,2]
[373329503,1752947480344,-150.0,0.0001989,2]
[373329504,1752947480353,-150.0,0.0001989,2]
[373329505,1752947480363,-252.297,0.0001989,2]
[373329506,1752947480373,-151.0,0.0001989,2]
[373329507,1752947480382,-151.0,0.0001989,2]
[373329508,1752947480391,-151.0,0.0001989,2]
[373329509,1752947480401,-151.0,0.0001989,2]
[373329510,1752947480411,-151.0,0.0001989,2]
[373329511,1752947480420,-151.0,0.0001989,2]
[373329512,1752947480430,-925.557106,0.0001989,2]
[373329513,1752947480439,-151.0,0.0001989,2]
[373329514,1752947480449,-151.0,0.0001989,2]
[373329515,1752947480458,-151.0,0.0001989,2]
[373329516,1752947480468,-151.0,0.0001989,2]
[373329517,1752947480478,-155.532021,0.0001989,2]
[373329518,1752947480487,-500.0,0.00019921,2]
[373329519,1752947480497,-151.0,0.00019945,2]
[373329520,1752947480506,-151.0,0.00019945,2]
[373329521,1752947480517,-476.15,0.00019945,2]
[373329522,1752947480527,-151.0,0.00019945,2]
[373329523,1752947480536,-281.83763,0.00019945,2]
[373329524,1752947480546,-480.0,0.00019945,2]
[373329525,1752947480555,-151.0,0.00019945,2]
[373329526,1752947480565,-151.0,0.00019945,2]
[373329527,1752947480574,-480.0,0.00019945,2]
[373329528,1752947480584,-480.0,0.00019945,2]
[373329529,1752947480593,-170.47438012,0.00019945,2]
[373329530,1752947480603,-581.97,0.00019945,2]
[373329531,1752947480613,-1032.82,0.00019945,2]
[373329532,1752947480622,-480.0,0.00019945,2]
[373329533,1752947480632,-480.0,0.00019945,2]
[373329534,1752947480642,-480.0,0.00019945,2]
[373329535,1752947480651,-480.0,0.00019945,2]
[373329536,1752947480661,-480.0,0.00019945,2]
[373329537,1752947480671,-511.8,0.00019945,2]
[373329538,1752947480680,-480.0,0.00019945,2]
[373329539,1752947480690,-480.0,0.00019945,2]
[373329540,1752947480700,-732.98,0.00019945,2]
[373329541,1752947480710,-480.0,0.00019945,2]
[373329542,1752947480720,-480.0,0.00019945,2]
[373329543,1752947480729,-705.62,0.00019945,2]
[373329544,1752947480739,-480.0,0.00019945,2]
[373329545,1752947480749,-480.0,0.00019945,2]
[373329546,1752947480758,-480.0,0.00019945,2]
[373329547,1752947480768,-480.0,0.00019945,2]
[373329548,1752947480777,-480.0,0.00019945,2]
[373329549,1752947480787,-480.0,0.00019945,2]
[373329550,1752947480797,-480.0,0.00019945,2]
[373329551,1752947480807,-480.0,0.00019945,2]
[373329552,1752947480817,-480.0,0.00019945,2]
[373329553,1752947480828,-480.0,0.00019945,2]
[373329554,1752947480839,-480.0,0.00019945,2]
[373329555,1752947480849,-480.0,0.00019945,2]
[373329556,1752947480858,-480.0,0.00019945,2]
[373329557,1752947480869,-334.64618965,0.00019945,2]
[373329558,1752947480879,-646.05,0.00019945,2]
[373329559,1752947480889,-480.0,0.00019945,2]
[373329560,1752947480899,-480.0,0.00019945,2]
[373329561,1752947480908,-480.0,0.00019945,2]
[373329562,1752947480919,-1135.62,0.00019945,2]
[373329563,1752947480929,-480.0,0.00019945,2]
[373329564,1752947480939,-513.46,0.00019945,2]
[373329565,1752947480952,-480.0,0.00019945,2]
[373329566,1752947480962,-492.53,0.00019945,2]
[373329567,1752947480972,-480.0,0.00019945,2]
[373329568,1752947480981,-480.0,0.00019945,2]
[373329569,1752947480993,-480.0,0.00019945,2]
[373329570,1752947481003,-480.0,0.00019945,2]
[373329571,1752947481013,-480.0,0.00019945,2]
[373329572,1752947481024,-480.0,0.00019945,2]
[373329573,1752947481034,-480.0,0.00019945,2]
[373329574,1752947481044,-512.86,0.00019945,2]
[373329575,1752947481053,-460.0,0.00019945,2]
[373329576,1752947481063,-480.0,0.00019945,2]
[373329577,1752947481072,-480.0,0.00019945,2]
[373329578,1752947481081,-480.0,0.00019945,2]
[373329579,1752947481091,-480.0,0.00019945,2]
[373329580,1752947481100,-480.0,0.00019945,2]
[373329581,1752947481110,-480.0,0.00019945,2]
[373329582,1752947481120,-480.0,0.00019945,2]
[373329583,1752947481130,-480.0,0.00019945,2]
[373329584,1752947481140,-482.46,0.00019945,2]
[373329585,1752947481150,-684.65,0.00019945,2]
[373329586,1752947481159,-480.0,0.00019945,2]
[373329587,1752947481169,-258.6,0.00019945,2]
[373329588,1752947481179,-845.48,0.00019945,2]
[373329589,1752947481188,-480.0,0.00019945,2]
[373329590,1752947481197,-480.0,0.00019945,2]
[373329591,1752947481208,-480.0,0.00019945,2]
[373329592,1752947481218,-487.4,0.00019945,2]
[373329593,1752947481228,-480.0,0.00019945,2]
[373329594,1752947481238,-480.0,0.00019945,2]
[373329595,1752947481248,-737.96,0.00019945,2]
[373329596,1752947481259,-480.0,0.00019945,2]
[373329597,1752947481269,-329.36,0.00019945,2]
[373329598,1752947481475,-480.0,0.00019945,2]
[373329599,1752947481486,-480.0,0.00019945,2]
[373329600,1752947481496,-260.55520854,0.00019945,2]
[373329601,1752947481507,-480.0,0.00019945,2]
[373329602,1752947481518,-493.38,0.00019945,2]
[373329603,1752947481527,-480.0,0.00019945,2]
[373329604,1752947481537,-480.0,0.00019945,2]
[373329605,1752947481547,-480.0,0.00019945,2]
[373329606,1752947481556,-1027.52,0.00019945,2]
[373329607,1752947481567,-480.0,0.00019945,2]
[373329608,1752947481576,-480.0,0.00019945,2]
[373329609,1752947481586,-1665.8,0.00019945,2]
[373329610,1752947481595,-684.14,0.00019945,2]
[373329611,1752947481606,-480.0,0.00019945,2]
[373329612,1752947481615,-480.0,0.00019945,2]
[373329613,1752947481624,-480.0,0.00019945,2]
[373329614,1752947481634,-866.32,0.00019945,2]
[373329615,1752947481644,-1613.96,0.00019945,2]
[373329616,1752947481654,-579.97,0.00019945,2]
[373329617,1752947481663,-653.05,0.00019945,2]
[373329618,1752947481673,-1760.29,0.00019945,2]
[373329619,1752947481682,-1511.88,0.00019945,2]
[373329620,1752947481692,-649.53,0.00019945,2]
[373329621,1752947481702,-480.0,0.00019945,2]
[373329622,1752947481712,-480.0,0.00019945,2]
[373329623,1752947481722,-548.64,0.00019945,2]
[373329624,1752947481732,-784.63,0.00019945,2]
[373329625,1752947481742,-769.17,0.00019945,2]
[373329626,1752947481751,-480.0,0.00019945,2]
[373329627,1752947481762,-624.03,0.00019945,2]
[373329628,1752947481772,-480.0,0.00019945,2]
[373329629,1752947481782,-480.0,0.00019945,2]
[373329630,1752947481792,-566.36,0.00019945,2]
[373329631,1752947481801,-480.0,0.00019945,2]
[373329632,1752947481811,-23.10317938,0.00019945,2]
[373329633,1752947482237,-1560.34,0.00019834,2]
[373329634,1752947482247,-456.89682062,0.00019945,2]
[373329635,1752947482257,-565.68,0.00019945,2]
[373329636,1752947482267,-311.39062326,0.00019945,2]
[373329637,1752947482279,-1229.83937674,0.00019945,2]
[373329638,1752947482289,-480.0,0.00019945,2]
[373329639,1752947482299,-1966.63,0.00019945,2]
[373329640,1752947482308,-1061.566029,0.00019945,2]
[373329641,1752947482317,-1071.078396,0.00019945,2]
[373329642,1752947482327,-1544.9,0.00019945,2]
[373329643,1752947482337,-480.0,0.00019945,2]
[373329644,1752947482346,-1964.37,0.00019945,2]
[373329645,1752947482356,-827.24,0.00019945,2]
[373329646,1752947482365,-4021.3,0.00019945,2]
[373329647,1752947482375,-977.88,0.00019945,2]
[373329648,1752947482384,-517.42,0.00019945,2]
[373329649,1752947482393,-480.0,0.00019945,2]
[373329650,1752947482403,-480.0,0.00019945,2]
[373329651,1752947482413,-752.96,0.00019945,2]
[373329652,1752947482422,-830.46,0.00019945,2]
[373329653,1752947482431,-499.4,0.00019945,2]
[373329654,1752947482440,-839.21,0.00019945,2]
[373329655,1752947482451,-881.13,0.00019945,2]
[373329656,1752947482461,-151.0,0.00019945,2]
[373329657,1752947482472,-507.57,0.00019945,2]
[373329658,1752947482482,-480.0,0.00019945,2]
[373329659,1752947482492,-480.0,0.00019945,2]
[373329660,1752947482502,-275.565567,0.00019945,2]
[373329661,1752947482512,-1377.35,0.00019945,2]
[373329662,1752947482521,-799.51,0.00019945,2]
[373329663,1752947482531,-2449.77,0.00019945,2]
[373329664,1752947482540,-771.35,0.00019945,2]
[373329665,1752947482551,-480.0,0.00019945,2]
[373329666,1752947482561,-275.565567,0.00019945,2]
[373329667,1752947482571,-480.0,0.00019945,2]
[373329668,1752947482580,-480.0,0.00019945,2]
[373329669,1752947482590,-2751.77,0.00019945,2]
[373329670,1752947482600,-556.56,0.00019945,2]
[373329671,1752947482610,-499.43,0.00019945,2]
[373329672,1752947482620,-550.27,0.00019945,2]
[373329673,1752947482630,-3635.27,0.00019945,2]
[373329674,1752947482639,-712.0,0.00019945,2]
[373329675,1752947482648,-480.0,0.00019945,2]
[373329676,1752947482659,-707.84,0.00019945,2]
[373329677,1752947482669,-555.4,0.00019945,2]
[373329678,1752947482678,-657.33,0.00019945,2]
[373329679,1752947482688,-626.32,0.00019945,2]
[373329680,1752947482698,-530.66,0.00019945,2]
[373329681,1752947482708,-659.38,0.00019945,2]
[373329682,1752947482717,-891.68,0.00019945,2]
[373329683,1752947482727,-1132.469178,0.00019945,2]
[373329684,1752947482738,-480.0,0.00019945,2]
[373329685,1752947482747,-651.47,0.00019945,2]
[373329686,1752947482757,-480.0,0.00019945,2]
[373329687,1752947482768,-664.87,0.00019945,2]
[373329688,1752947482777,-480.0,0.00019945,2]
[373329689,1752947482787,-1573.49,0.00019945,2]
[373329690,1752947482796,-1091.37,0.00019945,2]
[373329691,1752947482806,-1090.26,0.00019945,2]
[373329692,1752947482816,-2220.98832493,0.00019945,2]
[373329693,1752947482829,-938.41167507,0.00019945,2]
[373329694,1752947482839,-704.05,0.00019945,2]
[373329695,1752947482849,-713.41,0.00019945,2]
[373329696,1752947482859,-526.06181516,0.00019945,2]
[373329697,1752947482868,-566.08,0.00019945,2]
[373329698,1752947482878,-480.0,0.00019945,2]
[373329699,1752947482887,-656.68,0.00019945,2]
[373329700,1752947482897,-620.64,0.00019945,2]
[373329701,1752947482906,-2150.51,0.00019945,2]
[373329702,1752947482916,-480.0,0.00019945,2]
[373329703,1752947482926,-1450.72,0.00019945,2]
[373329704,1752947482935,-968.85,0.00019945,2]
[373329705,1752947482947,-480.0,0.00019945,2]
[373329706,1752947482957,-480.0,0.00019945,2]
[373329707,1752947482966,-914.06,0.00019945,2]
[373329708,1752947482976,-480.0,0.00019945,2]
[373329709,1752947482987,-528.66,0.00019945,2]
[373329710,1752947482996,-1429.57,0.00019945,2]
[373329711,1752947483006,-1525.629002,0.00019945,2]
[373329712,1752947483019,-714.08,0.00019945,2]
[373329713,1752947483029,-738.22,0.00019945,2]
[373329714,1752947483039,-649.1,0.00019945,2]
[373329715,1752947483049,-480.0,0.00019945,2]
[373329716,1752947483060,-1525.629002,0.00019945,2]
[373329717,1752947483070,-1323.57,0.00019945,2]
[373329718,1752947483079,-480.0,0.00019945,2]
[373329719,1752947483088,-480.0,0.00019945,2]
[373329720,1752947483098,-480.0,0.00019945,2]
[373329721,1752947483108,-480.0,0.00019945,2]
[373329722,1752947483118,-1052.89,0.00019945,2]
[373329723,1752947483127,-480.0,0.00019945,2]
[373329724,1752947483137,-480.0,0.00019945,2]
[373329725,1752947483146,-675.43,0.00019945,2]
[373329726,1752947483156,-480.0,0.00019945,2]
[373329727,1752947483166,-412.96,0.00019945,2]
[373329728,1752947483176,-493.0,0.00019945,2]
[373329729,1752947483185,-151.0,0.00019945,2]
[373329730,1752947483195,-1925.77,0.00019945,2]
[373329731,1752947483204,-480.0,0.00019945,2]
[373329732,1752947483214,-480.0,0.00019945,2]
[373329733,1752947483223,-151.0,0.00019945,2]
[373329734,1752947483232,-480.0,0.00019945,2]
[373329735,1752947483243,-242.916974,0.00019945,2]
[373329736,1752947483252,-1097.63,0.00019945,2]
[373329737,1752947483262,-2367.09,0.00019945,2]
[373329738,1752947483271,-480.0,0.00019945,2]
[373329739,1752947483280,-944.49,0.00019945,2]
[373329740,1752947483290,-151.0,0.00019945,2]
[373329741,1752947483299,-583.78,0.00019945,2]
[373329742,1752947483309,-480.0,0.00019945,2]
[373329743,1752947483319,-887.51,0.00019945,2]
[373329744,1752947483329,-1347.08,0.00019945,2]
[373329745,1752947483339,-480.0,0.00019945,2]
[373329746,1752947483348,-480.0,0.00019945,2]
[373329747,1752947483361,-309.574514,0.00019945,2]
[373329748,1752947483375,-480.0,0.00019945,2]
[373329749,1752947483385,-309.574514,0.00019945,2]
[373329750,1752947483394,-1573.99,0.00019945,2]
[373329751,1752947483405,-1810.63,0.00019945,2]
[373329752,1752947483415,-686.5,0.00019945,2]
[373329753,1752947483425,-3417.91,0.00019945,2]
[373329754,1752947483434,-1003.56,0.00019945,2]
[373329755,1752947483444,-877.98,0.00019945,2]
[373329756,1752947483454,-480.0,0.00019945,2]
[373329757,1752947483463,-625.41,0.00019945,2]
[373329758,1752947483472,-697.26,0.00019945,2]
[373329759,1752947483482,-484.73,0.00019945,2]
[373329760,1752947483492,-18779.77,0.00019945,2]
[373329761,1752947483502,-480.0,0.00019945,2]
[373329762,1752947483512,-1128.18,0.00019945,2]
[373329763,1752947483522,-151.76342,0.00019945,2]
[373329764,1752947483531,-480.0,0.00019945,2]
[373329765,1752947483540,-480.0,0.00019945,2]
[373329766,1752947483550,-480.0,0.00019945,2]
[373329767,1752947483559,-694.15,0.00019945,2]
[373329768,1752947483569,-622.71,0.00019945,2]
[373329769,1752947483578,-318.82908377,0.00019945,2]
[373329770,1752947483591,-2673.18091623,0.00019945,2]
[373329771,1752947483600,-480.0,0.00019945,2]
[373329772,1752947483609,-671.5,0.00019945,2]
[373329773,1752947483618,-3330.84,0.00019945,2]
[373329774,1752947483628,-512.56,0.00019945,2]
[373329775,1752947483637,-480.0,0.00019945,2]
[373329776,1752947483647,-894.92,0.00019945,2]
[373329777,1752947483656,-669.69,0.00019945,2]
[373329778,1752947483665,-480.0,0.00019945,2]
[373329779,1752947483675,-480.0,0.00019945,2]
[373329780,1752947483684,-151.0,0.00019945,2]
[373329781,1752947483694,-530.32,0.00019945,2]
[373329782,1752947483703,-565.91,0.00019945,2]
[373329783,1752947483712,-151.0,0.00019945,2]
[373329784,1752947483721,-480.0,0.00019945,2]
[373329785,1752947483730,-480.0,0.00019945,2]
[373329786,1752947483740,-483.19,0.00019945,2]
[373329787,1752947483822,-2589.88908377,0.00019945,2]
[373329788,1752947483833,-2600.78091623,0.00019945,2]
[373329789,1752947483843,-480.0,0.00019945,2]
[373329790,1752947483853,-480.0,0.00019945,2]
[373329791,1752947483863,-480.0,0.00019945,2]
[373329792,1752947483873,-480.0,0.00019945,2]
[373329793,1752947483882,-480.0,0.00019945,2]
[373329794,1752947483892,-871.01,0.00019945,2]
[373329795,1752947483901,-670.84,0.00019945,2]
[373329796,1752947483911,-541.67,0.00019945,2]
[373329797,1752947483920,-582.58,0.00019945,2]
[373329798,1752947483929,-480.0,0.00019945,2]
[373329799,1752947483939,-1471.9,0.00019945,2]
[373329800,1752947483952,-506.73,0.00019945,2]
[373329801,1752947483961,-164.48908377,0.00019945,2]
[373329802,1752947483972,-315.51091623,0.00019945,2]
[373329803,1752947483983,-1209.75,0.00019945,2]
[373329804,1752947483992,-480.0,0.00019945,2]
[373329805,1752947484002,-480.0,0.00019945,2]
[373329806,1752947484013,-480.0,0.00019945,2]
[373329807,1752947484026,-1136.8,0.00019945,2]
[373329808,1752947484036,-686.18,0.00019945,2]
[373329809,1752947484045,-1787.28,0.00019945,2]
[373329810,1752947484055,-463.49841493,0.00019945,2]
[373329811,1752947484065,-480.0,0.00019945,2]
[373329812,1752947484074,-613.3,0.00019945,2]
[373329813,1752947484083,-615.16,0.00019945,2]
[373329814,1752947484093,-480.0,0.00019945,2]
[373329815,1752947484102,-480.0,0.00019945,2]
[373329816,1752947484112,-480.0,0.00019945,2]
[373329817,1752947484122,-590.52,0.00019945,2]
[373329818,1752947484131,-1035.78,0.00019945,2]
[373329819,1752947484141,-1251.49,0.00019945,2]
[373329820,1752947484151,-480.0,0.00019945,2]
[373329821,1752947484161,-6709.99,0.00019945,2]
[373329822,1752947484170,-440.1724764,0.00019945,2]
[373329823,1752947484179,-151.0,0.00019945,2]
[373329824,1752947484189,-480.0,0.00019945,2]
[373329825,1752947484198,-576.67,0.00019945,2]
[373329826,1752947484208,-765.7,0.00019945,2]
[373329827,1752947484217,-157.64969249,0.0001995,2]
[373329828,1752947484227,-150.0,0.00019963,2]
[373329829,1752947484236,-168.4,0.00019968,2]
[373329830,1752947484245,-294.0,0.00019998,2]
[373329831,1752947484256,-61.14849995,0.0002,2]
[373329832,1752947484278,-1160.29,0.00019945,2]
[373329833,1752947484288,-480.0,0.00019945,2]
[373329834,1752947484298,-438.85150005,0.0002,2]
[373329835,1752947484307,-200.0,0.0002,2]
[373329836,1752947484317,-150.0,0.0002,2]
[373329837,1752947484327,-443.0,0.0002,2]
[373329838,1752947484337,-407.0,0.0002,2]
[373329839,1752947484346,-3718.0,0.0002,2]
[373329840,1752947484355,-258.26298422,0.0002,2]
[373329841,1752947484364,-1381.0,0.0002,2]
[373329842,1752947484374,-200.0,0.0002,2]
[373329843,1752947484386,-150.0,0.0002,2]
[373329844,1752947484396,-253.82234173,0.0002,2]
[373329845,1752947484406,-377.16172067,0.0002,2]
[373329846,1752947484745,-260.0,0.00019178,2]
[373329847,1752947484754,-259.080109,0.00019726,2]
[373329848,1752947484765,-480.0,0.00019835,2]
[373329849,1752947484774,-1560.34,0.00019932,2]
[373329850,1752947484784,-480.0,0.00019945,2]
[373329851,1752947484793,-1560.34,0.00019999,2]
[373329852,1752947484802,-122.83827933,0.0002,2]
[373329853,1752947484812,-150.0,0.0002,2]
[373329854,1752947484821,-1247.0,0.0002,2]
[373329855,1752947484831,-150.0,0.0002,2]
[373329856,1752947484841,-250.0,0.0002,2]
[373329857,1752947484850,-503.0,0.0002,2]
[373329858,1752947484859,-259.48417023,0.0002,2]
[373329859,1752947484914,-893.13,0.0002,2]
[373329860,1752947484965,-8848.99012869,0.0002,2]
[373329861,1752947484974,-4613.47670965,0.0002,4]
[373329862,1752947485288,1000.0,0.00030137,120]
[373329863,1752947485338,-4357.81462654,0.00019712,2]
[373329864,1752947485348,-375.54905684,0.0002,4]
[373329865,1752947485360,-614.93780381,0.0002,4]
[373329866,1752947485654,-480.0,0.00019178,2]
[373329867,1752947485664,-480.0,0.00019287,2]
[373329868,1752947485674,-480.0,0.00019397,2]
[373329869,1752947485684,-480.0,0.00019506,2]
[373329870,1752947485699,-480.0,0.00019616,2]
[373329871,1752947485708,-515.44471158,0.00019726,2]
[373329872,1752947485717,-14154.52408887,0.0002,4]
[373329873,1752947485825,-1642.83244102,0.0002,4]
[373329874,1752947485918,-907.99062876,0.0002,4]
[373329875,1752947485931,-5979.18812297,0.0002,4]
[373329876,1752947487750,515.0,0.00015124,2]
[373329877,1752947488077,498.75,0.00030137,120]
[373329878,1752947796920,508.93523831,0.00030136,120]
[373329879,1752947927267,82077.01800126,0.0003,120]
[373329880,1752948039277,250.0,0.00015,2]
[373329882,1752948227875,498.03,0.00013699,2]
[373329886,1752948548436,2964.465117,7.945e-05,2]
[373329888,1752948631840,-513.0,0.0001611,2]
[373329889,1752948631850,-189.07,0.00017151,2]
[373329890,1752948631859,-150.0,0.000175,2]
[373329891,1752948631871,-2113.40306752,0.00017842,2]
[373329892,1752948631883,-788.55693248,0.00017842,2]
[373329893,1752948631893,-224.61,0.00017864,2]
[373329894,1752948631903,-1186.19179817,0.00017885,2]
[373329895,1752948631919,-127.39820183,0.00017885,2]
[373329896,1752948631929,-353.06591106,0.00017939,4]
[373329897,1752948631959,-159.93408894,0.00017939,4]
[373329898,1752948631968,-300.0,0.00018122,2]
[373329899,1752948631979,-86.56523494,0.00018122,2]
[373329900,1752948632107,-1113.43476506,0.00018122,2]
[373329901,1752948632117,-150.0,0.00018123,2]
[373329902,1752948632126,-150.0,0.00018123,2]